fUSD/lending_fUSD_20240223
["ID","MTS","AMOUNT","RATE_DAILY","PERIOD"]
[314989856,1708716668637,-500.0,0.00032835,2]
[314989857,1708716668647,-500.0,0.00032835,2]
[314989858,1708716668656,-500.0,0.00032835,2]
[314989859,1708716668667,-825.76,0.00032835,2]
[314989860,1708716668676,-521.99089622,0.00032835,2]
[314989861,1708716668686,-523.46252412,0.00032835,2]
[314989862,1708716668696,-500.0,0.00032835,2]
[314989863,1708716668705,-500.0,0.00032835,2]
[314989864,1708716668714,-500.0,0.00032835,2]
[314989865,1708716668724,-500.0,0.00032835,2]
[314989866,1708716668733,-500.0,0.00032835,2]
[314989867,1708716668742,-500.0,0.00032835,2]
[314989868,1708716668753,-470.87487631,0.00032835,2]
[314989869,1708716668763,-500.0,0.00032835,2]
[314989870,1708716668773,-500.0,0.00032835,2]
[314989871,1708716668784,-500.0,0.00032835,2]
[314989872,1708716668793,-500.0,0.00032835,2]
[314989873,1708716668803,-593.57,0.00032835,2]
[314989874,1708716668813,-155.85963337,0.00032854,7]
[314989875,1708716668823,-202.9,0.00032854,2]
[314989876,1708716668833,-265.64558969,0.00032857,7]
[314989877,1708716668843,-265.64558969,0.00032866,7]
[314989878,1708716668853,-150.1,0.00032877,2]
[314989879,1708716668862,-151.1,0.00032877,2]
[314989880,1708716668873,-150.0,0.00032877,2]
[314989881,1708716668882,-218.79,0.00032877,2]
[314989882,1708716668892,-250.0,0.00032877,2]
[314989883,1708716668902,-8000.0,0.000329,2]
[314989884,1708716668913,-1261.52425531,0.000329,2]
[314989885,1708716668922,-265.64558969,0.00032938,7]
[314989886,1708716668932,-500.0,0.00032972,4]
[314989887,1708716668941,-500.0,0.00032972,4]
[314989888,1708716668952,-500.0,0.00032972,4]
[314989889,1708716668961,-500.0,0.00032972,4]
[314989890,1708716668971,-541.16,0.00032972,4]
[314989891,1708716668980,-500.0,0.00032972,4]
[314989892,1708716668990,-500.0,0.00032972,4]
[314989893,1708716669000,-500.0,0.00032972,4]
[314989894,1708716669009,-500.0,0.00032972,4]
[314989895,1708716669019,-611.5968697,0.00032972,4]
[314989896,1708716669029,-348.20914881,0.00032972,4]
[314989897,1708716669038,-500.0,0.00032972,4]
[314989898,1708716669048,-500.0,0.00032972,4]
[314989899,1708716669057,-500.0,0.00032972,4]
[314989900,1708716669067,-1000.0,0.00032972,7]
[314989901,1708716669076,-3968.36,0.00032972,4]
[314989902,1708716669085,-500.0,0.00032972,4]
[314989903,1708716669095,-500.0,0.00032972,4]
[314989904,1708716669105,-500.0,0.00032972,4]
[314989905,1708716669115,-500.0,0.00032972,4]
[314989906,1708716669124,-500.0,0.00032972,4]
[314989907,1708716669134,-500.0,0.00032972,4]
[314989908,1708716669144,-825.76,0.00032972,4]
[314989909,1708716669153,-500.0,0.00032972,4]
[314989910,1708716669163,-500.0,0.00032972,4]
[314989911,1708716669172,-253.07012665,0.00032972,2]
[314989912,1708716669181,-500.0,0.00032972,4]
[314989913,1708716669191,-500.0,0.00032972,4]
[314989914,1708716669201,-500.0,0.00032972,4]
[314989915,1708716669210,-500.0,0.00032972,4]
[314989916,1708716669220,-593.57,0.00032972,4]
[314989917,1708716669232,-2327.639,0.00032989,2]
[314989918,1708716669243,-589.45,0.00032989,2]
[314989919,1708716669253,-458.0,0.00032989,2]
[314989920,1708716669263,-745.1,0.00032989,2]
[314989921,1708716669273,-200.0,0.00033,2]
[314989922,1708716669284,-1000.0,0.00033,3]
[314989923,1708716669294,-22609.59851198,0.00033042,2]
[314989924,1708716669303,-158.69,0.00033059,2]
[314989925,1708716669313,-500.0,0.00033109,4]
[314989926,1708716669323,-500.0,0.00033109,4]
[314989927,1708716669332,-500.0,0.00033109,4]
[314989928,1708716669342,-500.0,0.00033109,4]
[314989929,1708716669351,-500.0,0.00033109,4]
[314989930,1708716669360,-500.0,0.00033109,4]
[314989931,1708716669370,-500.0,0.00033109,4]
[314989932,1708716669379,-500.0,0.00033109,4]
[314989933,1708716669388,-500.0,0.00033109,4]
[314989934,1708716669397,-1000.0,0.00033109,7]
[314989935,1708716669408,-3968.36,0.00033109,4]
[314989936,1708716669418,-500.0,0.00033109,4]
[314989937,1708716669428,-500.0,0.00033109,4]
[314989938,1708716669438,-500.0,0.00033109,4]
[314989939,1708716669447,-500.0,0.00033109,4]
[314989940,1708716669457,-500.0,0.00033109,4]
[314989941,1708716669466,-500.0,0.00033109,4]
[314989942,1708716669475,-825.76,0.00033109,4]
[314989943,1708716669485,-500.0,0.00033109,4]
[314989944,1708716669495,-500.0,0.00033109,4]
[314989945,1708716669504,-500.0,0.00033109,4]
[314989946,1708716669514,-500.0,0.00033109,4]
[314989947,1708716669523,-500.0,0.00033109,4]
[314989948,1708716669533,-593.57,0.00033109,4]
[314989949,1708716669542,-167.02514081,0.00033118,7]
[314989950,1708716669551,-265.64558969,0.00033141,7]
[314989951,1708716669561,-160.49481861,0.00033191,7]
[314989952,1708716669570,-2000.0,0.000332,2]
[314989953,1708716669579,-500.0,0.00033246,4]
[314989954,1708716669588,-500.0,0.00033246,4]
[314989955,1708716669597,-500.0,0.00033246,4]
[314989956,1708716669607,-500.0,0.00033246,4]
[314989957,1708716669616,-500.0,0.00033246,4]
[314989958,1708716669637,-500.0,0.00033246,4]
[314989959,1708716669653,-500.0,0.00033246,4]
[314989960,1708716669671,-500.0,0.00033246,4]
[314989961,1708716669685,-960.28017793,0.00033246,7]
[314989962,1708716669698,-3968.36,0.00033246,4]
[314989963,1708716669713,-500.0,0.00033246,4]
[314989964,1708716669727,-500.0,0.00033246,4]
[314989965,1708716669741,-500.0,0.00033246,4]
[314989966,1708716669758,-500.0,0.00033246,4]
[314989967,1708716669772,-500.0,0.00033246,4]
[314989968,1708716669783,-537.26361983,0.00033246,4]
[314989969,1708716669798,-825.76,0.00033246,4]
[314989970,1708716669810,-500.0,0.00033246,4]
[314989971,1708716669824,-500.0,0.00033246,4]
[314989972,1708716669836,-500.0,0.00033246,4]
[314989973,1708716669851,-500.0,0.00033246,4]
[314989974,1708716669862,-500.0,0.00033246,4]
[314989975,1708716669874,-593.57,0.00033246,4]
[314989976,1708716669890,-4970.94547961,0.00033257,5]
[314989977,1708716669904,-265.64558969,0.00033259,7]
[314989978,1708716669919,-153.33262733,0.00033264,7]
[314989979,1708716669932,-160.49481861,0.00033273,7]
[314989980,1708716669946,-673.07,0.00033308,2]
[314989981,1708716669959,-500.0,0.00033383,4]
[314989982,1708716669973,-500.0,0.00033383,4]
[314989983,1708716669988,-195.65777779,0.00033383,4]
[314989984,1708716670003,-500.0,0.00033383,4]
[314989985,1708716670017,-500.0,0.00033383,4]
[314989986,1708716670028,-500.0,0.00033383,4]
[314989987,1708716670038,-500.0,0.00033383,4]
[314989988,1708716670050,-3968.36,0.00033383,4]
[314989989,1708716670063,-500.0,0.00033383,4]
[314989990,1708716670076,-500.0,0.00033383,4]
[314989991,1708716670091,-500.0,0.00033383,4]
[314989992,1708716670104,-500.0,0.00033383,4]
[314989993,1708716670115,-500.0,0.00033383,4]
[314989994,1708716670126,-825.76,0.00033383,4]
[314989995,1708716670140,-500.0,0.00033383,4]
[314989996,1708716670153,-500.0,0.00033383,4]
[314989997,1708716670167,-500.0,0.00033383,4]
[314989998,1708716670180,-430.24309089,0.00033383,4]
[314989999,1708716670194,-500.0,0.00033383,4]
[314990000,1708716670208,-593.57,0.00033383,4]
[314990001,1708716670220,-337.53725946,0.00033384,7]
[314990002,1708716670233,-153.89,0.000334,2]
[314990003,1708716670249,-157.08374947,0.00033424,7]
[314990004,1708716670262,-156.30526137,0.00033443,7]
[314990005,1708716670274,-556.52448831,0.0003346,2]
[314990006,1708716670288,-13652.95102418,0.0003346,2]
[314990007,1708716670299,-1394.55708931,0.0003346,2]
[314990008,1708716670311,-1073.43369037,0.0003346,2]
[314990009,1708716670325,-27121.63715841,0.00033475,2]
[314990010,1708716670339,-7764.71211721,0.00033475,2]
[314990011,1708716670351,-155.14487318,0.0003348,7]
[314990012,1708716670362,-1571.34,0.000335,2]
[314990013,1708716670374,-1571.34,0.000335,2]
[314990014,1708716670387,-1571.34,0.000335,2]
[314990015,1708716670399,-1571.34,0.000335,2]
[314990016,1708716670414,-1571.34,0.000335,2]
[314990017,1708716670426,-1571.34,0.000335,2]
[314990018,1708716670438,-1571.34,0.000335,2]
[314990019,1708716670450,-1571.34,0.000335,2]
[314990020,1708716670462,-1571.34,0.000335,2]
[314990021,1708716670474,-1571.34,0.000335,2]
[314990022,1708716670485,-1571.34,0.000335,2]
[314990023,1708716670497,-1571.34,0.000335,2]
[314990024,1708716670509,-1571.34,0.000335,2]
[314990025,1708716670521,-1571.34,0.000335,2]
[314990026,1708716670533,-1571.34,0.000335,2]
[314990027,1708716670545,-1571.34,0.000335,2]
[314990028,1708716670556,-1571.34,0.000335,2]
[314990029,1708716670568,-1571.34,0.000335,2]
[314990030,1708716670580,-1571.34,0.000335,2]
[314990031,1708716670592,-1571.34,0.000335,2]
[314990032,1708716670604,-500.0,0.0003352,4]
[314990033,1708716670617,-500.0,0.0003352,4]
[314990034,1708716670628,-500.0,0.0003352,4]
[314990035,1708716670640,-500.0,0.0003352,4]
[314990036,1708716670652,-500.0,0.0003352,4]
[314990037,1708716670664,-3968.36,0.0003352,4]
[314990038,1708716670677,-500.0,0.0003352,4]
[314990039,1708716670689,-500.0,0.0003352,4]
[314990040,1708716670701,-500.0,0.0003352,4]
[314990041,1708716670713,-500.0,0.0003352,4]
[314990042,1708716670724,-500.0,0.0003352,4]
[314990043,1708716670737,-825.76,0.0003352,4]
[314990044,1708716670751,-500.0,0.0003352,4]
[314990045,1708716670762,-500.0,0.0003352,4]
[314990046,1708716670774,-580.74826751,0.0003352,4]
[314990047,1708716670786,-434.98514382,0.0003352,4]
[314990048,1708716670799,-593.57,0.0003352,4]
[314990049,1708716670812,-156.57354395,0.00033528,7]
[314990050,1708716670825,-156.30526137,0.00033578,7]
[314990051,1708716670837,-520.18855665,0.00033594,7]
[314990052,1708716670849,-158.44336474,0.00033607,7]
[314990053,1708716670861,-159.39088986,0.00033617,7]
[314990054,1708716670873,-167.65885402,0.00033618,7]
[314990055,1708716670885,-520.18855665,0.00033625,7]
[314990056,1708716670896,-200.0,0.0003365,3]
[314990057,1708716670908,-800.0,0.0003365,2]
[314990058,1708716670921,-200.0,0.0003365,10]
[314990059,1708716670933,-500.0,0.0003365,10]
[314990060,1708716670945,-500.0,0.00033657,4]
[314990061,1708716670956,-500.0,0.00033657,4]
[314990062,1708716670968,-367.36,0.00033657,4]
[314990063,1708716670980,-3968.36,0.00033657,4]
[314990064,1708716670992,-500.0,0.00033657,4]
[314990065,1708716671003,-500.0,0.00033657,4]
[314990066,1708716671015,-500.0,0.00033657,4]
[314990067,1708716671027,-825.76,0.00033657,4]
[314990068,1708716671038,-500.0,0.00033657,4]
[314990069,1708716671050,-500.0,0.00033657,4]
[314990070,1708716671062,-593.57,0.00033657,4]
[314990071,1708716671074,-151.54644394,0.00033703,7]
[314990072,1708716671085,-158.44336474,0.00033713,7]
[314990073,1708716671097,-156.30526137,0.0003372,7]
[314990074,1708716671108,-160.0,0.00033721,2]
[314990075,1708716671120,-150.0,0.00033742,2]
[314990076,1708716671132,-308.7,0.0003377,2]
[314990077,1708716671144,-158.69,0.0003379,2]
[314990078,1708716671156,-500.0,0.00033794,4]
[314990079,1708716671171,-3968.36,0.00033794,4]
[314990080,1708716671182,-500.0,0.00033794,4]
[314990081,1708716671195,-500.0,0.00033794,4]
[314990082,1708716671207,-825.76,0.00033794,4]
[314990083,1708716671218,-500.0,0.00033794,4]
[314990084,1708716671230,-500.0,0.00033794,4]
[314990085,1708716671243,-593.57,0.00033794,4]
[314990086,1708716671255,-829.3,0.000338,2]
[314990087,1708716671268,-154.02083881,0.00033892,7]
[314990088,1708716671279,-152.71199376,0.000339,2]
[314990089,1708716671291,-182.0,0.000339,7]
[314990090,1708716671303,-154.98329938,0.00033902,7]
[314990091,1708716671315,-155.14487318,0.00033925,7]
[314990092,1708716671327,-500.0,0.00033931,4]
[314990093,1708716671339,-3968.36,0.00033931,4]
[314990094,1708716671351,-500.0,0.00033931,4]
[314990095,1708716671362,-500.0,0.00033931,4]
[314990096,1708716671374,-825.76,0.00033931,4]
[314990097,1708716671386,-500.0,0.00033931,4]
[314990098,1708716671398,-500.0,0.00033931,4]
[314990099,1708716671409,-593.57,0.00033931,4]
[314990100,1708716671422,-156.57354395,0.00033945,7]
[314990101,1708716671434,-155.76031539,0.00033945,7]
[314990102,1708716671446,-265.64558969,0.00033958,7]
[314990103,1708716671458,-200.0,0.00034,2]
[314990104,1708716671470,-1000.0,0.00034,4]
[314990105,1708716671482,-500.0,0.00034068,4]
[314990106,1708716671494,-3968.36,0.00034068,4]
[314990107,1708716671505,-500.0,0.00034068,4]
[314990108,1708716671517,-500.0,0.00034068,4]
[314990109,1708716671529,-825.76,0.00034068,4]
[314990110,1708716671540,-500.0,0.00034068,4]
[314990111,1708716671553,-593.57,0.00034068,4]
[314990112,1708716671565,-156.30526137,0.0003409,7]
[314990113,1708716671576,-265.64558969,0.00034106,7]
[314990114,1708716671588,-337.53725946,0.00034199,7]
[314990115,1708716671600,-8000.0,0.000342,2]
[314990116,1708716671612,-500.0,0.00034205,4]
[314990117,1708716671624,-3968.36,0.00034205,4]
[314990118,1708716671636,-500.0,0.00034205,4]
[314990119,1708716671648,-500.0,0.00034205,4]
[314990120,1708716671660,-825.76,0.00034205,4]
[314990121,1708716671672,-500.0,0.00034205,4]
[314990122,1708716671683,-593.57,0.00034205,4]
[314990123,1708716671695,-153.50007691,0.00034212,7]
[314990124,1708716671708,-520.18855665,0.00034217,7]
[314990125,1708716671720,-153.31768893,0.00034243,7]
[314990126,1708716671732,-156.30526137,0.00034258,7]
[314990127,1708716671744,-520.18855665,0.0003428,7]
[314990128,1708716671755,-159.29487323,0.0003432,7]
[314990129,1708716671764,-156.30526137,0.00034323,7]
[314990130,1708716671774,-500.0,0.00034342,4]
[314990131,1708716671784,-3968.36,0.00034342,4]
[314990132,1708716672066,-500.0,0.00034342,4]
[314990133,1708716672084,-213.35,0.00034342,4]
[314990134,1708716672093,-825.76,0.00034342,4]
[314990135,1708716672102,-500.0,0.00034342,4]
[314990136,1708716672112,-593.57,0.00034342,4]
[314990137,1708716672121,-4970.94547961,0.00034383,6]
[314990138,1708716672130,-159.39088986,0.00034403,7]
[314990139,1708716672140,-265.64558969,0.00034449,7]
[314990140,1708716672149,-159.51672722,0.00034471,7]
[314990141,1708716672158,-500.0,0.00034479,4]
[314990142,1708716672170,-3968.36,0.00034479,4]
[314990143,1708716672179,-500.0,0.00034479,4]
[314990144,1708716672188,-825.76,0.00034479,4]
[314990145,1708716672197,-500.0,0.00034479,4]
[314990146,1708716672207,-593.57,0.00034479,4]
[314990147,1708716672217,-202.9,0.00034498,2]
[314990148,1708716672227,-4560.832641,0.0003452,2]
[314990149,1708716672241,-1547.297326,0.0003452,2]
[314990150,1708716672250,-77077.103107,0.0003452,2]
[314990151,1708716672259,-10000.0,0.00034521,2]
[314990152,1708716672269,-158.69,0.00034521,2]
[314990153,1708716672278,-163.70167317,0.00034521,7]
[314990154,1708716672288,-520.18855665,0.00034523,7]
[314990155,1708716672297,-156.57354395,0.00034529,7]
[314990156,1708716672307,-265.64558969,0.00034532,7]
[314990157,1708716672317,-345.88326893,0.00034548,30]
[314990158,1708716672327,-520.18855665,0.00034557,7]
[314990159,1708716672337,-194.88,0.00034557,2]
[314990160,1708716672346,-150.0,0.00034607,2]
[314990161,1708716672356,-194.18892276,0.00034615,2]
[314990162,1708716672365,-150.0,0.00034615,2]
[314990163,1708716672375,-500.0,0.00034616,4]
[314990164,1708716672384,-3968.36,0.00034616,4]
[314990165,1708716672394,-191.87306057,0.00034616,4]
[314990166,1708716672403,-825.76,0.00034616,4]
[314990167,1708716672414,-500.0,0.00034616,4]
[314990168,1708716672423,-593.57,0.00034616,4]
[314990169,1708716672432,-155.57626885,0.00034617,7]
[314990170,1708716672442,-156.30526137,0.00034689,7]
[314990171,1708716672451,-520.18855665,0.00034721,7]
[314990172,1708716672460,-265.64558969,0.00034731,7]
[314990173,1708716672469,-500.0,0.00034753,4]
[314990174,1708716672478,-3968.36,0.00034753,4]
[314990175,1708716672488,-825.76,0.00034753,4]
[314990176,1708716672498,-500.0,0.00034753,4]
[314990177,1708716672507,-593.57,0.00034753,4]
[314990178,1708716672515,-153.33262733,0.00034764,7]
[314990179,1708716672524,-6841.248962,0.00034794,2]
[314990180,1708716672533,-2320.945989,0.00034794,2]
[314990181,1708716672542,-115615.65466,0.00034794,2]
[314990182,1708716672551,-520.18855665,0.00034797,7]
[314990183,1708716672561,-1500.0,0.00034798,2]
[314990184,1708716672570,-520.18855665,0.0003481,7]
[314990185,1708716672579,-155.76031539,0.0003487,7]
[314990186,1708716672588,-151.0,0.0003487,7]
[314990187,1708716672597,-257.243312,0.0003487,7]
[314990188,1708716672607,-270.820114,0.0003487,7]
[314990189,1708716672616,-270.820114,0.0003487,7]
[314990190,1708716672625,-27121.63715841,0.0003487,2]
[314990191,1708716672634,-7764.71211721,0.0003487,2]
[314990192,1708716672644,-156.57354395,0.00034871,7]
[314990193,1708716672653,-520.18855665,0.00034877,7]
[314990194,1708716672663,-290.88,0.0003489,4]
[314990195,1708716672672,-3968.36,0.0003489,4]
[314990196,1708716672682,-825.76,0.0003489,4]
[314990197,1708716672691,-500.0,0.0003489,4]
[314990198,1708716672700,-593.57,0.0003489,4]
[314990199,1708716672710,-500.0,0.00034892,10]
[314990200,1708716672719,-200.0,0.000349,8]
[314990201,1708716672728,-5093.08279513,0.000349,2]
[314990202,1708716672737,-5093.08279505,0.000349,2]
[314990203,1708716672748,-5093.08279505,0.000349,2]
[314990204,1708716672758,-5093.08279505,0.000349,2]
[314990205,1708716672768,-5093.08279505,0.000349,2]
[314990206,1708716672777,-5093.08279505,0.000349,2]
[314990207,1708716672787,-158.00337685,0.00034903,7]
[314990208,1708716672796,-156.57354395,0.00034924,7]
[314990209,1708716672805,-9121.665282,0.00034931,2]
[314990210,1708716672815,-3094.594652,0.00034931,2]
[314990211,1708716672824,-154154.206214,0.00034931,2]
[314990212,1708716672834,-151.0,0.00034931,7]
[314990213,1708716672844,-269.4276,0.00034931,7]
[314990214,1708716672853,-269.4276,0.00034931,7]
[314990215,1708716672862,-151.0,0.00034931,7]
[314990216,1708716672872,-226.142149,0.00034931,7]
[314990217,1708716672881,-151.0,0.00034931,7]
[314990218,1708716672891,-166.546488,0.00034931,7]
[314990219,1708716672900,-151.0,0.00034931,7]
[314990220,1708716672909,-151.0,0.00034931,7]
[314990221,1708716672920,-1500.0,0.0003497,2]
[314990222,1708716672930,-337.53725946,0.00034999,7]
[314990223,1708716672939,-155.20925086,0.00035,4]
[314990224,1708716672949,-838.44250105,0.00035,4]
[314990225,1708716672958,-229.20433756,0.00035,7]
[314990226,1708716672969,-222.0,0.00035,2]
[314990227,1708716672978,-19753.66775138,0.00035,2]
[314990228,1708716672988,-1000.0,0.00035,5]
[314990229,1708716672999,-3968.36,0.00035027,4]
[314990230,1708716673010,-825.76,0.00035027,4]
[314990231,1708716673019,-500.0,0.00035027,4]
[314990232,1708716673028,-593.57,0.00035027,4]
[314990233,1708716673038,-160.49481861,0.00035034,7]
[314990234,1708716673047,-159.39088993,0.00035065,7]
[314990235,1708716673056,-11402.081603,0.00035068,2]
[314990236,1708716673065,-3868.243315,0.00035068,2]
[314990237,1708716673075,-192692.757767,0.00035068,2]
[314990238,1708716673084,-151.0,0.00035068,7]
[314990239,1708716673093,-151.0,0.00035068,7]
[314990240,1708716673103,-151.0,0.00035068,2]
[314990241,1708716673112,-151.0,0.00035068,2]
[314990242,1708716673122,-151.0,0.00035068,7]
[314990243,1708716673131,-151.0,0.00035068,7]
[314990244,1708716673141,-151.0,0.00035068,7]
[314990245,1708716673151,-518.057061,0.00035068,7]
[314990246,1708716673161,-518.057061,0.00035068,7]
[314990247,1708716673171,-151.0,0.00035068,7]
[314990248,1708716673182,-151.0,0.00035068,7]
[314990249,1708716673191,-151.0,0.00035068,7]
[314990250,1708716673200,-151.0,0.00035068,7]
[314990251,1708716673210,-151.0,0.00035068,7]
[314990252,1708716673220,-151.0,0.00035068,7]
[314990253,1708716673232,-151.0,0.00035068,7]
[314990254,1708716673246,-151.0,0.00035068,7]
[314990255,1708716673255,-272.067182,0.00035068,7]
[314990256,1708716673264,-272.067182,0.00035068,7]
[314990257,1708716673274,-156.30526137,0.00035088,7]
[314990258,1708716673284,-160.0,0.0003509,2]
[314990259,1708716673294,-159.51672722,0.00035099,7]
[314990260,1708716673304,-5008.54,0.000351,2]
[314990261,1708716673313,-430.7049708,0.00035102,10]
[314990262,1708716673324,-167.02514081,0.00035105,7]
[314990263,1708716673334,-520.18855665,0.00035122,7]
[314990264,1708716673344,-337.53725946,0.00035124,7]
[314990265,1708716673354,-3968.36,0.00035164,4]
[314990266,1708716673363,-825.76,0.00035164,4]
[314990267,1708716673372,-500.0,0.00035164,4]
[314990268,1708716673382,-593.57,0.00035164,4]
[314990269,1708716673391,-194.18892276,0.00035166,2]
[314990270,1708716673401,-520.18855665,0.00035197,7]
[314990271,1708716673410,-153.89,0.000352,3]
[314990272,1708716673420,-153.89,0.000352,3]
[314990273,1708716673429,-162.29119657,0.00035214,7]
[314990274,1708716673440,-337.53725946,0.00035215,7]
[314990275,1708716673449,-154.98329938,0.00035246,7]
[314990276,1708716673458,-158.69,0.00035251,2]
[314990277,1708716673467,-520.18855674,0.00035281,7]
[314990278,1708716673476,-337.53725946,0.00035286,7]
[314990279,1708716673486,-151.0,0.000353,7]
[314990280,1708716673495,-151.0,0.000353,7]
[314990281,1708716673504,-1571.34,0.000353,3]
[314990282,1708716673513,-1571.34,0.000353,3]
[314990283,1708716673523,-1571.34,0.000353,3]
[314990284,1708716673533,-1571.34,0.000353,3]
[314990285,1708716673542,-1571.34,0.000353,3]
[314990286,1708716673551,-1571.34,0.000353,3]
[314990287,1708716673561,-1571.34,0.000353,3]
[314990288,1708716673570,-1571.34,0.000353,3]
[314990289,1708716673579,-1571.34,0.000353,3]
[314990290,1708716673589,-1571.34,0.000353,3]
[314990291,1708716673598,-1571.34,0.000353,3]
[314990292,1708716673607,-1571.34,0.000353,3]
[314990293,1708716673616,-1571.34,0.000353,3]
[314990294,1708716673626,-1571.34,0.000353,3]
[314990295,1708716673635,-1571.34,0.000353,3]
[314990296,1708716673645,-1571.34,0.000353,3]
[314990297,1708716673654,-1571.34,0.000353,3]
[314990298,1708716673665,-1571.34,0.000353,3]
[314990299,1708716673674,-1571.34,0.000353,3]
[314990300,1708716673683,-1571.34,0.000353,3]
[314990301,1708716673692,-3968.36,0.00035301,4]
[314990302,1708716673701,-825.76,0.00035301,4]
[314990303,1708716673710,-500.0,0.00035301,4]
[314990304,1708716673719,-593.57,0.00035301,4]
[314990305,1708716673728,-218.79,0.00035312,2]
[314990306,1708716673737,-337.53725946,0.00035335,7]
[314990307,1708716673747,-15962.914244,0.00035342,2]
[314990308,1708716673756,-5415.540642,0.00035342,2]
[314990309,1708716673765,-269769.860874,0.00035342,2]
[314990310,1708716673774,-151.0,0.00035342,7]
[314990311,1708716673783,-258.386958,0.00035342,7]
[314990312,1708716673793,-258.386958,0.00035342,7]
[314990313,1708716673802,-151.0,0.00035342,7]
[314990314,1708716673812,-155.59752133,0.00035349,7]
[314990315,1708716673821,-156.30526137,0.00035426,7]
[314990316,1708716673831,-3968.36,0.00035438,4]
[314990317,1708716673840,-825.76,0.00035438,4]
[314990318,1708716673849,-500.0,0.00035438,4]
[314990319,1708716673858,-593.57,0.00035438,4]
[314990320,1708716673868,-500.0,0.0003544,10]
[314990321,1708716673877,-308.7,0.0003544,2]
[314990322,1708716673887,-155.14487318,0.00035445,7]
[314990323,1708716673896,-150.0,0.00035472,2]
[314990324,1708716673905,-156.30526137,0.00035508,7]
[314990325,1708716673915,-4970.94547961,0.00035509,8]
[314990326,1708716673925,-337.53725952,0.00035534,7]
[314990327,1708716673933,-156.30526137,0.00035545,7]
[314990328,1708716673943,-673.07,0.00035572,2]
[314990329,1708716673953,-3968.36,0.00035575,4]
[314990330,1708716673963,-825.76,0.00035575,4]
[314990331,1708716673972,-500.0,0.00035575,4]
[314990332,1708716673982,-593.57,0.00035575,4]
[314990333,1708716673991,-18243.330565,0.00035589,2]
[314990334,1708716674000,-308308.412428,0.00035589,2]
[314990335,1708716674010,-19753.66775138,0.00035589,2]
[314990336,1708716674020,-2250.0,0.000356,2]
[314990337,1708716674029,-8000.0,0.000356,2]
[314990338,1708716674039,-151.1,0.00035616,2]
[314990339,1708716674048,-159.29487323,0.00035709,7]
[314990340,1708716674058,-265.64558969,0.0003571,7]
[314990341,1708716674067,-3968.36,0.00035712,4]
[314990342,1708716674076,-825.76,0.00035712,4]
[314990343,1708716674085,-500.0,0.00035712,4]
[314990344,1708716674095,-593.57,0.00035712,4]
[314990345,1708716674104,-194.18892276,0.00035717,2]
[314990346,1708716674114,-152.0,0.00035749,4]
[314990347,1708716674123,-158.44336474,0.00035767,7]
[314990348,1708716674133,-543.1838,0.0003579,2]
[314990349,1708716674143,-158.00337685,0.00035792,7]
[314990350,1708716674152,-10000.0,0.00035798,2]
[314990351,1708716674161,-222.0,0.000358,2]
[314990352,1708716674172,-3968.53,0.00035849,4]
[314990353,1708716674181,-825.84,0.00035849,4]
[314990354,1708716674190,-168.79617508,0.00035849,4]
[314990355,1708716674199,-593.79666873,0.00035849,4]